bitfinex/quotes_BTCUSD_20230831
["timestamp","ask_amount","ask_price","bid_price","bid_amount"]
[1693498550185,0.51268085,26843.0,26842.0,0.0196353]
[1693498550397,0.02,26848.0,26842.0,0.0196353]
[1693498550398,0.0735,26850.0,26842.0,0.1672353]
[1693498550611,0.36990187,26849.0,26844.0,0.1476]
[1693498550827,0.00222102,26849.0,26845.0,0.14707234]
[1693498551037,0.09746,26858.0,26846.0,0.3]
[1693498551250,0.02,26856.0,26850.0,0.1476]
[1693498551485,0.016,26854.0,26853.0,0.003]
[1693498551718,0.04,26858.0,26853.0,0.003]
[1693498551719,0.03047356,26868.0,26853.0,0.66535319]
[1693498551958,0.03047356,26868.0,26857.0,0.1476]
[1693498551959,0.149006,26863.0,26857.0,0.1476]
[1693498552169,0.149006,26863.0,26858.0,0.44707234]
[1693498552384,0.149006,26863.0,26858.0,0.71637234]
[1693498552607,0.02,26866.0,26860.0,0.1476]
[1693498552841,0.02,26866.0,26861.0,0.44707234]
[1693498553069,0.02,26866.0,26862.0,0.3]
[1693498553277,0.02,26866.0,26863.0,0.14707234]
[1693498553703,0.0753,26868.0,26863.0,0.14707234]
[1693498553910,0.36768085,26868.0,26864.0,0.44707234]
[1693498554135,0.38768085,26868.0,26864.0,0.44707234]
[1693498554348,0.25550319,26868.0,26864.0,0.3]
[1693498554553,0.32988051,26867.0,26864.0,0.3]
[1693498554766,0.53268085,26866.0,26863.0,0.003]
[1693498554974,0.02,26859.0,26854.0,0.07100161]
[1693498555181,0.145,26858.0,26855.0,0.36768085]
[1693498555617,0.145,26858.0,26856.0,0.3]
[1693498555618,0.21466351,26858.0,26856.0,0.3]
[1693498555830,0.06966351,26858.0,26856.0,0.3]
[1693498557082,0.06966351,26858.0,26857.0,0.1476]
[1693498557287,0.06966351,26858.0,26857.0,0.4476]
[1693498557872,0.06966351,26858.0,26857.0,0.3]
[1693498558077,0.08966351,26858.0,26857.0,0.3]
[1693498558239,0.15929993,26858.0,26857.0,0.3]
[1693498558440,0.15929993,26858.0,26857.0,0.337]
[1693498558441,0.52898078,26858.0,26857.0,0.337]
[1693498558645,0.9146833,26858.0,26857.0,0.037]
[1693498558848,0.23131993,26858.0,26857.0,0.074]
[1693498559048,0.17029832,26858.0,26857.0,0.074]
[1693498559942,0.149007,26863.0,26857.0,0.44168085]
[1693498560148,0.02899839,26863.0,26858.0,0.81475319]
[1693498560359,0.02,26862.0,26859.0,0.1476]
[1693498560557,0.02,26862.0,26860.0,0.3]
[1693498560700,0.02899839,26862.0,26860.0,0.3]
[1693498560905,0.02,26861.0,26860.0,0.3]
[1693498561107,0.09374,26861.0,26860.0,0.3]
[1693498561311,0.08438,26861.0,26860.0,0.3]
[1693498561512,0.0846787,26861.0,26859.0,0.3]
[1693498561978,0.0846787,26861.0,26860.0,0.02]
[1693498562151,0.0866787,26861.0,26860.0,0.046]
[1693498562353,0.0846787,26861.0,26860.0,0.02]
[1693498562549,0.0846787,26861.0,26859.0,0.3]
[1693498562749,0.0846787,26861.0,26859.0,0.326]
[1693498562750,0.0866787,26861.0,26859.0,0.326]
[1693498562979,0.07284,26867.0,26860.0,0.51528085]
[1693498562980,0.02899839,26867.0,26860.0,0.51528085]
[1693498563256,0.02899839,26866.0,26862.0,0.1476]
[1693498563402,0.02899839,26866.0,26863.0,0.81475319]
[1693498563779,0.02899839,26870.0,26864.0,0.2076]
[1693498563977,0.02899839,26869.0,26866.0,0.1476]
[1693498564183,1.3021595,26873.0,26867.0,0.83475319]
[1693498564384,0.14895,26873.0,26872.0,0.1476]
[1693498564556,0.02899839,26875.0,26872.0,0.44707234]
[1693498564766,0.02899839,26875.0,26873.0,0.44707234]
[1693498565201,0.02899839,26875.0,26873.0,0.3]
[1693498565813,0.02899839,26875.0,26871.0,0.3]
[1693498566245,0.02899839,26875.0,26872.0,0.021]
[1693498566394,0.02,26879.0,26872.0,0.021]
[1693498566677,0.02899839,26875.0,26873.0,0.14707234]
[1693498566885,0.02899839,26875.0,26874.0,0.3]
[1693498567494,0.0811005,26875.0,26874.0,0.3]
[1693498567940,0.0811005,26875.0,26874.0,0.318]
[1693498568142,0.05210211,26875.0,26874.0,0.318]
[1693498568344,0.71044344,26875.0,26874.0,0.018]
[1693498568519,0.80902344,26875.0,26874.0,0.018]
[1693498568693,0.1624605,26875.0,26874.0,0.039]
[1693498568899,0.0811005,26875.0,26874.0,0.039]
[1693498569550,0.0811005,26875.0,26874.0,0.018]
[1693498569783,0.0811005,26875.0,26871.0,0.3]
[1693498571008,0.0811005,26875.0,26874.0,0.008]
[1693498571411,0.05210211,26875.0,26871.0,0.306]
[1693498571634,0.0811005,26875.0,26871.0,0.67368085]
[1693498571847,0.0811005,26875.0,26871.0,0.66768085]
[1693498572044,0.05210211,26875.0,26871.0,0.61568085]
[1693498572265,0.0206,26884.0,26877.0,0.06]
[1693498572473,0.0206,26885.0,26882.0,0.1476]
[1693498572696,0.0206,26888.0,26884.0,0.06]
[1693498572964,0.27391219,26889.0,26885.0,0.51475319]
[1693498573377,0.04473378,26888.0,26885.0,0.51475319]
[1693498573575,0.04473378,26888.0,26886.0,0.1476]
[1693498574309,0.04460058,26888.0,26887.0,0.66768085]
[1693498574729,0.02959839,26889.0,26887.0,0.77190888]
[1693498574885,0.02959839,26889.0,26888.0,0.25182803]
[1693498575088,0.02959839,26889.0,26888.0,0.3]
[1693498575489,0.07432537,26889.0,26888.0,0.3]
[1693498576311,0.07432537,26889.0,26886.0,0.3]
[1693498576524,0.02899839,26882.0,26881.0,0.2343]
[1693498576780,0.02899839,26881.0,26877.0,0.158624]
[1693498576983,0.145,26880.0,26877.0,0.75580485]
[1693498577198,0.145,26880.0,26877.0,0.78592873]
[1693498577404,0.02899839,26881.0,26877.0,0.78592873]
[1693498577405,0.02899839,26881.0,26879.0,0.1476]
[1693498577808,0.02899839,26881.0,26877.0,0.41824788]
[1693498578021,0.17399839,26881.0,26877.0,0.78592873]
[1693498578251,0.05347397,26880.0,26877.0,0.82292873]
[1693498578871,0.05347397,26880.0,26877.0,0.78592873]
[1693498579067,0.05347397,26880.0,26879.0,0.037]
[1693498579279,0.02899839,26881.0,26879.0,0.73829085]
[1693498579497,0.02899839,26881.0,26880.0,0.66768085]
[1693498580090,0.00899839,26881.0,26880.0,0.66768085]
[1693498580348,0.02899839,26881.0,26880.0,0.66768085]
[1693498580800,0.07452,26887.0,26880.0,0.66768085]
[1693498581000,0.02899839,26882.0,26881.0,0.14707234]
[1693498581205,0.06899839,26885.0,26881.0,0.66768085]
[1693498581539,0.06899839,26885.0,26883.0,0.1476]
[1693498581860,0.06899839,26885.0,26884.0,0.3]
[1693498582083,0.06899839,26885.0,26882.0,0.3]
[1693498582281,0.04,26884.0,26882.0,0.3]
[1693498582684,0.04,26884.0,26883.0,0.51528085]
[1693498582804,0.04,26884.0,26883.0,0.81528085]
[1693498583253,0.04899839,26886.0,26883.0,0.81528085]
[1693498583425,0.04899839,26886.0,26884.0,0.3]
[1693498583629,0.04899839,26886.0,26884.0,0.66768085]
[1693498584415,0.05099839,26886.0,26884.0,0.66768085]
[1693498585433,0.3266327,26886.0,26884.0,0.3]
[1693498585716,0.05368151,26885.0,26884.0,0.3]
[1693498586115,0.05368151,26885.0,26884.0,0.337]
[1693498587292,0.05368151,26885.0,26884.0,0.374]
[1693498587733,0.05368151,26885.0,26884.0,0.337]
[1693498587937,0.2316399,26885.0,26884.0,0.074]
[1693498588113,0.2202399,26885.0,26884.0,0.074]
[1693498588355,0.2114199,26885.0,26884.0,0.074]
[1693498588563,0.2237799,26885.0,26884.0,0.074]
[1693498588765,0.2224599,26885.0,26884.0,0.074]
[1693498588978,0.2229399,26885.0,26884.0,0.074]
[1693498589183,0.2199399,26885.0,26884.0,0.037]
[1693498589335,0.00899839,26881.0,26877.0,0.33012388]
[1693498589537,0.145,26880.0,26877.0,0.66768085]
[1693498589903,0.00899839,26881.0,26877.0,0.66768085]
[1693498590720,0.10952,26885.0,26872.0,0.18606]
[1693498590721,0.02899839,26873.0,26872.0,0.18606]
[1693498590926,0.02899839,26873.0,26863.0,0.01100161]
[1693498590927,0.00899839,26867.0,26861.0,0.02]
[1693498591127,0.02,26872.0,26862.0,0.36768085]
[1693498591128,0.02899839,26865.0,26862.0,0.36768085]
[1693498591325,0.145,26864.0,26862.0,0.36768085]
[1693498591554,0.145,26864.0,26859.0,0.45923512]
[1693498591810,0.145,26864.0,26859.0,0.09602089]
[1693498591811,0.01248872,26861.0,26859.0,0.09602089]
[1693498591977,0.145,26860.0,26859.0,0.09602089]
[1693498592174,0.145,26860.0,26859.0,0.01108577]
[1693498592376,0.23014491,26860.0,26859.0,0.01108577]
[1693498592575,0.12514491,26860.0,26859.0,0.01108577]
[1693498592777,0.12514491,26860.0,26859.0,0.04808577]
[1693498593180,0.40243933,26860.0,26859.0,0.04808577]
[1693498593351,0.13863363,26860.0,26859.0,0.08208577]
[1693498594015,0.13763363,26860.0,26859.0,0.04808577]
[1693498594216,0.13863363,26860.0,26859.0,0.04508577]
[1693498594743,0.13863363,26860.0,26859.0,0.069]
[1693498594948,0.13863363,26860.0,26859.0,0.034]
[1693498595286,0.13863363,26860.0,26859.0,0.069]
[1693498596512,0.05348872,26860.0,26859.0,0.069]
[1693498596930,0.12141182,26860.0,26859.0,0.069]
[1693498598546,0.4206985,26860.0,26859.0,0.069]
[1693498598748,0.12141182,26860.0,26859.0,0.069]
[1693498600430,0.38384427,26860.0,26859.0,0.069]
[1693498600638,0.51990427,26860.0,26859.0,0.069]
[1693498600969,0.52686427,26860.0,26859.0,0.069]
[1693498601145,0.26353182,26860.0,26859.0,0.069]
[1693498601347,0.63649267,26860.0,26859.0,0.069]
[1693498601606,0.63649267,26860.0,26859.0,0.035]
[1693498601607,0.92181267,26860.0,26859.0,0.035]
[1693498601827,0.92181267,26860.0,26854.0,0.17572285]
[1693498601828,0.15248872,26855.0,26854.0,0.16432689]
[1693498602046,0.68516957,26855.0,26854.0,0.16432689]
[1693498602270,0.70516957,26855.0,26854.0,0.16432689]
[1693498602474,0.75097702,26855.0,26854.0,0.16432689]
[1693498602692,0.74971702,26855.0,26854.0,0.16432689]
[1693498602897,0.75025702,26855.0,26854.0,0.16432689]
[1693498603102,0.74141702,26855.0,26854.0,0.16432689]
[1693498603307,0.74117702,26855.0,26854.0,0.16432689]
[1693498603509,0.74117702,26855.0,26854.0,0.16732689]
[1693498603510,0.75713702,26855.0,26854.0,0.16732689]
[1693498603726,1.05942666,26855.0,26854.0,0.16732689]
[1693498603932,0.93810666,26855.0,26854.0,0.16732689]
[1693498604137,1.00668666,26855.0,26854.0,0.16732689]
[1693498604341,0.71627702,26855.0,26854.0,0.16732689]
[1693498604545,0.72317702,26855.0,26854.0,0.16732689]
[1693498604757,0.96277702,26855.0,26854.0,0.16732689]
[1693498604961,1.36357702,26855.0,26854.0,0.16732689]
[1693498605165,1.35769702,26855.0,26854.0,0.16732689]
[1693498605365,1.36025702,26855.0,26854.0,0.16732689]
[1693498605571,1.35989702,26855.0,26854.0,0.16732689]
[1693498605773,1.35037702,26855.0,26854.0,0.16732689]
[1693498605980,0.92689702,26855.0,26854.0,0.16432689]
[1693498606188,0.94261702,26855.0,26854.0,0.16732689]
[1693498606373,0.94381702,26855.0,26854.0,0.16732689]
[1693498606602,0.91525702,26855.0,26854.0,0.16732689]
[1693498606812,0.92833702,26855.0,26854.0,0.16732689]
[1693498606992,0.92737702,26855.0,26854.0,0.16732689]
[1693498607235,0.92005702,26855.0,26854.0,0.16732689]
[1693498607439,1.37081702,26855.0,26854.0,0.16732689]
[1693498607643,1.37569702,26855.0,26854.0,0.17032689]
[1693498607844,1.35121702,26855.0,26854.0,0.17032689]
[1693498608049,1.34461702,26855.0,26854.0,0.17032689]
[1693498608249,1.34485702,26855.0,26854.0,0.17032689]
[1693498608452,1.34845702,26855.0,26854.0,0.17032689]
[1693498608658,1.34701702,26855.0,26854.0,0.17032689]
[1693498608864,1.34593702,26855.0,26854.0,0.17032689]
[1693498609090,1.34629702,26855.0,26854.0,0.17032689]
[1693498609299,1.17625702,26855.0,26854.0,0.17032689]
[1693498609509,1.35997702,26855.0,26854.0,0.17032689]
[1693498609708,1.39489702,26855.0,26854.0,0.17032689]
[1693498609919,0.035,26846.0,26844.0,0.02119218]
[1693498610131,0.145,26845.0,26843.0,0.2194]
[1693498610341,0.145,26845.0,26841.0,0.17511128]
[1693498610548,0.145,26845.0,26842.0,0.39877608]
[1693498611008,0.035,26846.0,26842.0,0.42868035]
[1693498611218,0.035,26846.0,26844.0,0.035]
[1693498611219,0.036,26846.0,26844.0,0.035]
[1693498611637,0.05779394,26845.0,26844.0,0.034]
[1693498611847,0.05879394,26845.0,26844.0,0.034]
[1693498612262,0.05779394,26845.0,26844.0,0.034]
[1693498612684,0.08779394,26845.0,26844.0,0.035]
[1693498612888,0.035,26844.0,26842.0,0.0609995]
[1693498613543,0.035,26843.0,26842.0,0.04953957]
[1693498614378,0.3023872,26843.0,26842.0,0.04953957]
[1693498615235,0.084,26843.0,26842.0,0.05353957]
[1693498615653,0.084,26843.0,26842.0,0.05053957]
[1693498615654,0.048,26843.0,26842.0,0.05053957]
[1693498615883,0.048,26843.0,26832.0,0.08883611]
[1693498615884,0.035,26833.0,26832.0,0.08883611]
[1693498616126,0.06,26840.0,26833.0,0.04013095]
[1693498616127,0.185,26838.0,26833.0,0.04013095]
[1693498616377,0.1476,26835.0,26833.0,0.04013095]
[1693498616629,0.145,26834.0,26833.0,0.04013095]
[1693498616834,0.145,26835.0,26833.0,0.04013095]
[1693498617051,0.1876,26838.0,26833.0,0.04013095]
[1693498617469,0.1876,26838.0,26833.0,0.18720329]
[1693498617680,0.04,26838.0,26833.0,0.04013095]
[1693498617889,0.06738,26839.0,26834.0,0.14707234]
[1693498618098,0.02,26843.0,26834.0,0.56235319]
[1693498618278,0.02,26842.0,26835.0,0.3]
[1693498618528,0.02,26842.0,26836.0,0.04914468]
[1693498618529,0.037,26838.0,26836.0,0.04914468]
[1693498618737,0.037,26838.0,26835.0,0.5269]
[1693498618944,0.02,26841.0,26835.0,0.89458085]
[1693498619149,0.065,26839.0,26836.0,0.04914468]
[1693498619351,0.065,26839.0,26835.0,0.94372553]
[1693498619352,0.037,26839.0,26835.0,0.94372553]
[1693498619563,0.037,26839.0,26836.0,0.36768085]
[1693498619776,0.39368085,26838.0,26837.0,0.3]
[1693498619979,0.39368085,26838.0,26836.0,0.002]
[1693498619980,0.026,26838.0,26836.0,0.002]
[1693498620427,0.60105307,26837.0,26836.0,0.002]
[1693498620633,0.45345307,26837.0,26836.0,0.002]
[1693498620842,0.45345307,26837.0,26833.0,0.2286]
[1693498620843,0.45345307,26837.0,26833.0,0.2256]
[1693498621051,0.67468541,26837.0,26833.0,0.2256]
[1693498621253,0.52821307,26837.0,26835.0,0.037]
[1693498621432,0.08577222,26837.0,26835.0,0.037]
[1693498621713,0.08577222,26837.0,26836.0,0.003]
[1693498621913,0.08577222,26837.0,26836.0,0.004]
[1693498622152,0.08577222,26837.0,26836.0,0.001]
[1693498622387,0.08577222,26837.0,26834.0,0.4476]
[1693498622589,0.013,26837.0,26836.0,0.1476]
[1693498622797,0.02,26846.0,26837.0,0.03541063]
[1693498623016,0.04,26847.0,26837.0,0.03541063]
[1693498623017,0.02,26847.0,26840.0,0.1476]
[1693498623260,0.169094,26847.0,26841.0,0.34914468]
[1693498623478,0.149094,26847.0,26841.0,0.34914468]
[1693498623897,0.02,26849.0,26841.0,0.71682553]
[1693498624101,0.02,26850.0,26841.0,0.71682553]
[1693498624309,0.51475319,26850.0,26841.0,0.71682553]
[1693498624514,0.41627526,26849.0,26841.0,0.71682553]
[1693498624718,0.48923526,26849.0,26841.0,0.71682553]
[1693498624937,0.64149726,26849.0,26841.0,0.71682553]
[1693498625136,0.64149726,26849.0,26841.0,0.72282553]
[1693498625137,0.68329726,26849.0,26841.0,0.72282553]
[1693498625356,0.68329726,26849.0,26841.0,0.35514468]
[1693498625357,0.5,26847.0,26841.0,0.35514468]
[1693498625554,0.14707234,26846.0,26842.0,0.3]
[1693498625806,0.02,26844.0,26841.0,0.003]
[1693498625981,0.02,26842.0,26841.0,0.003]
[1693498626186,0.02,26842.0,26841.0,0.006]
[1693498626400,0.11108,26842.0,26841.0,0.006]
[1693498626609,0.52950085,26842.0,26841.0,0.006]
[1693498626811,0.70056085,26842.0,26841.0,0.006]
[1693498627041,0.54654085,26842.0,26841.0,0.006]
[1693498627232,0.62580578,26842.0,26841.0,0.006]
[1693498627460,0.62580578,26842.0,26841.0,0.003]
[1693498627646,0.38768085,26842.0,26838.0,0.234]
[1693498627845,0.59347319,26842.0,26838.0,0.234]
[1693498628079,0.45992085,26842.0,26838.0,0.234]
[1693498628285,0.74087816,26842.0,26838.0,0.234]
[1693498628492,0.74087816,26842.0,26841.0,0.003]
[1693498628493,0.69831816,26842.0,26841.0,0.003]
[1693498628698,0.34563731,26842.0,26841.0,0.006]
[1693498628916,0.34563731,26842.0,26841.0,0.003]
[1693498628917,0.051,26842.0,26841.0,0.003]
[1693498629124,0.47108085,26842.0,26838.0,0.234]
[1693498629330,0.36768085,26841.0,26838.0,0.234]
[1693498629533,0.33012198,26842.0,26838.0,0.234]
[1693498629740,0.33012198,26842.0,26838.0,0.235]
[1693498629741,0.27074922,26841.0,26838.0,0.235]
[1693498629992,0.02,26842.0,26839.0,0.41682553]
[1693498630187,0.2049,26848.0,26839.0,0.41682553]
[1693498630188,0.1849,26848.0,26841.0,0.1]
[1693498630395,0.06582,26852.0,26842.0,0.56442553]
[1693498630608,0.02,26851.0,26843.0,0.3]
[1693498630818,0.02,26851.0,26844.0,0.04914468]
[1693498631027,0.0944,26851.0,26844.0,0.04914468]
[1693498631242,0.1476,26848.0,26844.0,0.04914468]
[1693498631470,0.1476,26848.0,26843.0,0.3]
[1693498631680,0.29467234,26848.0,26842.0,0.3]
[1693498631892,0.14707234,26847.0,26842.0,0.3]
[1693498632118,0.1676,26846.0,26844.0,0.003]
[1693498632323,0.6129154,26845.0,26844.0,0.003]
[1693498632533,0.7128754,26845.0,26844.0,0.003]
[1693498632735,0.7136554,26845.0,26844.0,0.003]
[1693498632948,0.09254,26846.0,26844.0,0.003]
[1693498633155,0.29446041,26845.0,26844.0,0.003]
[1693498633803,0.29446041,26845.0,26839.0,0.33037952]
[1693498634009,0.29446041,26845.0,26840.0,0.44768085]
[1693498634010,0.14707234,26845.0,26840.0,0.44768085]
[1693498634214,0.1903,26848.0,26842.0,0.01]
[1693498634422,0.1903,26848.0,26843.0,0.04914468]
[1693498634633,0.1893,26848.0,26843.0,0.04914468]
[1693498634832,0.003,26845.0,26843.0,0.04914468]
[1693498635070,0.003,26845.0,26841.0,0.3]
[1693498635290,0.003,26845.0,26841.0,0.66768085]
[1693498635500,0.003,26845.0,26841.0,0.3]
[1693498635501,0.14707234,26845.0,26841.0,0.3]
[1693498635707,0.14707234,26845.0,26843.0,0.01]
[1693498635938,0.40033618,26847.0,26843.0,0.04]
[1693498636152,0.39397618,26847.0,26843.0,0.04]
[1693498636360,0.39199618,26847.0,26843.0,0.01]
[1693498636573,0.39073618,26847.0,26843.0,0.01]
[1693498636779,0.39013618,26847.0,26843.0,0.01]
[1693498636991,0.08058,26846.0,26841.0,0.038]
[1693498637234,0.23895234,26846.0,26841.0,0.038]
[1693498637445,0.06883521,26847.0,26842.0,0.41682553]
[1693498637636,0.02,26854.0,26845.0,0.2223]
[1693498637875,0.02,26855.0,26846.0,0.71682553]
[1693498638083,0.02,26858.0,26846.0,0.71682553]
[1693498638084,0.01248872,26853.0,26848.0,0.06]
[1693498638284,0.06407649,26853.0,26849.0,0.63912553]
[1693498638555,0.01248872,26853.0,26850.0,0.3]
[1693498638757,0.01248872,26853.0,26850.0,0.66768085]
[1693498639327,0.01248872,26853.0,26850.0,0.3]
[1693498639526,0.01248872,26853.0,26848.0,0.316]
[1693498639750,0.01248872,26853.0,26849.0,0.36768085]
[1693498639951,0.01248872,26853.0,26850.0,0.3]
[1693498640275,0.01248872,26853.0,26850.0,0.304]
[1693498640476,0.01248872,26853.0,26850.0,0.2]
[1693498640889,0.01248872,26853.0,26850.0,0.215]
[1693498641094,0.01348872,26853.0,26850.0,0.215]
[1693498641285,0.24525112,26853.0,26850.0,0.215]
[1693498641518,0.05186319,26852.0,26848.0,0.223]
[1693498641724,0.05186319,26852.0,26850.0,0.028]
[1693498641931,0.05186319,26852.0,26850.0,0.39568085]
[1693498642136,0.01348872,26853.0,26851.0,0.36768085]
[1693498642553,0.01348872,26853.0,26852.0,0.3]
[1693498643613,0.01348872,26853.0,26852.0,0.46768085]
[1693498644024,0.01348872,26853.0,26852.0,0.3]
[1693498644647,0.01348872,26853.0,26850.0,0.2503]
[1693498644852,0.01248872,26853.0,26850.0,0.58998085]
[1693498645054,0.01348872,26853.0,26852.0,0.028]
[1693498645232,0.01348872,26853.0,26852.0,0.044]
[1693498645461,0.01348872,26853.0,26852.0,0.028]
[1693498645672,0.01348872,26853.0,26850.0,0.58998085]
[1693498645673,0.01248872,26853.0,26851.0,0.3]
[1693498645875,0.01348872,26853.0,26852.0,0.03]
[1693498646076,0.01348872,26853.0,26851.0,0.3]
[1693498646499,0.01348872,26853.0,26852.0,0.038]
[1693498646908,0.32696086,26853.0,26852.0,0.038]
[1693498647118,0.01348872,26853.0,26852.0,0.038]
[1693498647296,0.06534296,26853.0,26852.0,0.038]
[1693498647738,0.01248872,26853.0,26852.0,0.038]
[1693498648116,0.01348872,26853.0,26852.0,0.075]
[1693498648276,0.01348872,26853.0,26852.0,0.037]
[1693498648921,0.001,26853.0,26852.0,0.62698085]
[1693498649097,0.01248872,26859.0,26852.0,0.97449213]
[1693498649298,0.01248872,26858.0,26854.0,0.2223]
[1693498649506,0.01248872,26858.0,26855.0,0.3]
[1693498650120,0.05190483,26857.0,26855.0,0.3]
[1693498650531,0.05190483,26857.0,26854.0,0.3]
[1693498650733,0.01248872,26855.0,26854.0,0.3]
[1693498651150,0.01248872,26854.0,26851.0,0.03005357]
[1693498651359,0.01248872,26854.0,26852.0,0.001]
[1693498651360,0.15956106,26854.0,26852.0,0.001]
[1693498651565,0.01248872,26854.0,26852.0,0.001]
[1693498651960,0.01248872,26854.0,26849.0,0.546]
[1693498651961,0.05196209,26853.0,26849.0,0.546]
[1693498652139,0.19903443,26853.0,26849.0,0.91368085]
[1693498652348,0.19903443,26853.0,26851.0,0.038]
[1693498652552,0.01248872,26854.0,26851.0,0.038]
[1693498652746,0.01248872,26854.0,26849.0,0.91368085]
[1693498652949,0.15956106,26854.0,26852.0,0.068]
[1693498653178,0.01248872,26854.0,26852.0,0.038]
[1693498653822,0.09180872,26857.0,26852.0,0.038]
[1693498654005,0.01248872,26856.0,26853.0,0.04914468]
[1693498654295,0.01248872,26856.0,26853.0,0.5485]
[1693498655464,0.01248872,26856.0,26854.0,0.58998085]
[1693498655708,0.01248872,26856.0,26855.0,0.3]
[1693498655940,0.01248872,26856.0,26853.0,0.5595]
[1693498656154,0.01248872,26856.0,26853.0,0.93118085]
[1693498656371,0.01248872,26856.0,26853.0,0.92718085]
[1693498656776,0.01248872,26856.0,26854.0,0.004]
[1693498657180,0.1546,26861.0,26854.0,0.004]
[1693498657181,0.01248872,26857.0,26854.0,0.004]
[1693498657593,0.05195315,26855.0,26854.0,0.004]
[1693498657808,0.01248872,26857.0,26854.0,0.004]
[1693498657809,0.01248872,26857.0,26854.0,0.015]
[1693498658031,0.01248872,26856.0,26854.0,0.52668085]
[1693498658182,0.01248872,26856.0,26855.0,0.3]
[1693498659371,0.01248872,26856.0,26855.0,0.311]
[1693498659588,0.01248872,26856.0,26855.0,0.315]
[1693498660010,0.01248872,26856.0,26855.0,0.311]
[1693498660695,0.32498594,26856.0,26855.0,0.3]
[1693498660995,0.32498594,26856.0,26855.0,0.038]
[1693498660996,0.37693642,26856.0,26855.0,0.038]
[1693498661551,0.0644392,26856.0,26855.0,0.038]
[1693498661752,0.0644392,26856.0,26855.0,0.068]
[1693498661969,0.31569587,26856.0,26855.0,0.068]
[1693498663376,0.0644392,26856.0,26855.0,0.068]
[1693498664327,0.30357815,26856.0,26855.0,0.068]
[1693498664532,0.29257815,26856.0,26855.0,0.068]
[1693498666594,0.0534392,26856.0,26855.0,0.068]
[1693498673781,0.34926406,26856.0,26855.0,0.068]
[1693498674207,0.0534392,26856.0,26855.0,0.068]
[1693498674768,0.05195048,26856.0,26855.0,0.068]
[1693498674965,0.1546,26861.0,26855.0,0.068]
[1693498675172,0.05196697,26856.0,26855.0,0.068]
[1693498675795,0.07536,26860.0,26855.0,0.068]
[1693498675796,0.07206,26860.0,26855.0,0.068]
[1693498676009,0.07224,26860.0,26855.0,0.11714468]
[1693498676214,0.0729,26860.0,26856.0,0.3]
[1693498676422,0.04546847,26859.0,26855.0,0.03]
[1693498676628,0.32904869,26859.0,26854.0,0.3]
[1693498676835,0.47612103,26859.0,26854.0,0.3]
[1693498676958,0.54512103,26859.0,26855.0,0.002]
[1693498677160,0.31971386,26858.0,26855.0,0.001]
[1693498677362,0.32271386,26858.0,26853.0,0.04091743]
[1693498677688,0.0633,26857.0,26853.0,0.01144221]
[1693498677885,0.06324,26857.0,26853.0,0.01144221]
[1693498678084,0.06336,26857.0,26853.0,0.01144221]
[1693498678293,0.25539386,26858.0,26853.0,0.01144221]
[1693498678451,0.001,26859.0,26853.0,0.01144221]
[1693498678653,0.14807234,26859.0,26853.0,0.06058689]
[1693498678858,0.23711234,26859.0,26853.0,0.06058689]
[1693498679063,0.07104,26858.0,26853.0,0.06058689]
[1693498679276,0.07218,26858.0,26853.0,0.01144221]
[1693498679469,0.0726,26858.0,26853.0,0.01144221]
[1693498679668,0.10422,26860.0,26853.0,0.01144221]
[1693498679875,0.61933319,26860.0,26854.0,0.04914468]
[1693498680102,0.47214085,26860.0,26854.0,0.04914468]
[1693498680311,0.0837,26859.0,26854.0,0.04914468]
[1693498680521,0.06672,26859.0,26853.0,0.01544221]
[1693498680726,0.21667234,26859.0,26853.0,0.06458689]
[1693498680938,0.36768085,26855.0,26851.0,0.21918609]
[1693498681155,0.16,26850.0,26849.0,0.08922886]
[1693498681366,0.16,26850.0,26841.0,0.22315475]
[1693498681367,0.02,26845.0,26841.0,0.22315475]
[1693498681582,0.168,26843.0,26839.0,0.22315475]
[1693498681804,0.168,26843.0,26839.0,0.0892619]
[1693498681805,0.79604984,26842.0,26839.0,0.0892619]
[1693498681997,0.58903319,26842.0,26839.0,0.0892619]
[1693498682207,0.58135319,26842.0,26838.0,0.0892619]
[1693498682407,0.81019141,26842.0,26838.0,0.0892619]
[1693498682641,0.81349141,26842.0,26838.0,0.0892619]
[1693498682841,0.08178,26841.0,26838.0,0.22315475]
[1693498683045,0.08178,26841.0,26838.0,0.0892619]
[1693498683046,0.14707234,26840.0,26838.0,0.0892619]
[1693498683267,0.49058085,26841.0,26837.0,0.0291083]
[1693498683462,0.06714,26839.0,26837.0,0.0892619]
[1693498683669,0.53475319,26841.0,26838.0,0.004]
[1693498683670,0.0798,26840.0,26838.0,0.004]
[1693498683878,0.08232,26840.0,26838.0,0.018]
[1693498684076,0.0846,26840.0,26838.0,0.014]
[1693498684277,0.0834,26840.0,26835.0,0.11869221]
[1693498684480,0.25306704,26839.0,26835.0,0.25258506]
[1693498684681,0.25406704,26839.0,26837.0,0.028]
[1693498684886,0.32588704,26839.0,26837.0,0.028]
[1693498685088,0.32384704,26839.0,26837.0,0.028]
[1693498685341,0.25406704,26839.0,26837.0,0.028]
[1693498686160,0.31786704,26839.0,26836.0,0.3]
[1693498686424,0.25306704,26839.0,26836.0,0.3]
[1693498686831,0.07236,26840.0,26837.0,0.004]
[1693498687034,0.31909913,26839.0,26837.0,0.004]
[1693498687241,0.38495913,26839.0,26836.0,0.014]
[1693498687441,0.38321913,26839.0,26836.0,0.014]
[1693498687694,0.32009913,26839.0,26836.0,0.018]
[1693498687895,0.31909913,26839.0,26835.0,0.32943031]
[1693498688097,0.31909913,26839.0,26837.0,0.002]
[1693498688304,0.31909913,26839.0,26837.0,0.006]
[1693498688483,0.07332,26840.0,26837.0,0.006]
[1693498688687,0.07398,26840.0,26837.0,0.006]
[1693498688979,0.07314,26840.0,26837.0,0.006]
[1693498689118,0.07374,26840.0,26837.0,0.006]